bitfinex/quotes_ETHUSD_20240827
["timestamp","ask_amount","ask_price","bid_price","bid_amount"]
[1724748460579,9.85528,2687.3,2686.6,3.72215]
[1724748460780,6.13395,2687.3,2686.7,0.372215]
[1724748460976,6.13395,2687.3,2686.6,3.72215]
[1724748461498,2.4127,2687.3,2686.6,3.72215]
[1724748461685,3.72136,2687.2,2686.6,3.72215]
[1724748463352,3.72136,2687.2,2686.6,3.72209]
[1724748464151,2.4127,2687.3,2686.6,3.72215]
[1724748464330,9.5993,2687.5,2687.0,3.7216]
[1724748465057,2.3193,2687.5,2687.0,3.7216]
[1724748467553,2.3193,2687.5,2687.0,7.44314]
[1724748467751,3.72082,2687.6,2687.0,7.44314]
[1724748467955,3.72082,2687.6,2687.1,3.72147]
[1724748468156,3.72082,2687.6,2687.2,0.744301]
[1724748469153,3.72082,2687.6,2686.9,3.72174]
[1724748469517,7.44174,2687.6,2686.9,3.72174]
[1724748469928,3.72093,2687.5,2686.9,3.72174]
[1724748472757,3.72106,2687.4,2686.9,3.72174]
[1724748473116,3.72082,2687.6,2687.0,3.72161]
[1724748474029,3.72082,2687.6,2686.9,0.95780346]
[1724748474365,3.72109,2687.4,2686.9,0.95780346]
[1724748475064,3.72109,2687.4,2686.9,4.67953346]
[1724748475423,3.72082,2687.6,2686.9,4.67953346]
[1724748475619,3.72096,2687.5,2687.0,1.08958135]
[1724748475821,3.72096,2687.5,2686.5,2.29]
[1724748475822,2.3329,2687.3,2686.5,2.29]
[1724748476021,3.72171,2687.0,2686.5,2.29]
[1724748476564,3.72171,2687.0,2686.5,3.72227]
[1724748476915,7.44287,2687.2,2686.5,3.72227]
[1724748477118,7.44287,2687.2,2686.6,4.466623]
[1724748478485,7.44283,2687.2,2686.6,4.466623]
[1724748478799,7.44284,2687.2,2686.6,4.466623]
[1724748479683,3.72141,2687.2,2686.6,4.466623]
[1724748480548,3.72141,2687.2,2686.6,8.188723]
[1724748480748,3.72141,2687.2,2686.7,0.8188723]
[1724748480749,7.44284,2687.2,2686.7,0.8188723]
[1724748480949,7.44284,2687.2,2686.6,3.7221]
[1724748481163,3.72141,2687.2,2686.6,3.7221]
[1724748481351,3.72141,2687.2,2686.7,3.72203]
[1724748481679,2.3329,2687.3,2686.8,3.72181]
[1724748481860,7.28,2687.4,2686.7,2.29]
[1724748481861,7.28,2687.4,2687.2,3.72134]
[1724748482184,7.28,2687.4,2687.0,3.72162]
[1724748482185,6.0537,2687.6,2687.1,3.72146]
[1724748483788,11.00058,2687.8,2687.0,3.72149]
[1724748483789,14.7212,2687.8,2687.2,6.01302]
[1724748484090,3.7207,2687.7,2687.2,6.986471]
[1724748485086,3.72079,2687.6,2687.2,3.265151]
[1724748491009,3.72079,2687.6,2687.2,0.973451]
[1724748491208,7.44169,2687.6,2687.0,6.16208]
[1724748491865,3.72079,2687.6,2687.0,6.16208]
[1724748492366,7.44168,2687.6,2687.0,6.16208]
[1724748492594,7.44168,2687.6,2687.1,0.6763261]
[1724748492868,3.72079,2687.6,2687.1,0.6763261]
[1724748493699,3.72126,2687.3,2686.7,2.4405]
[1724748493880,3.72177,2686.9,2686.3,6.16298]
[1724748494079,2.2856,2687.0,2686.3,2.4405]
[1724748494080,3.72193,2686.8,2686.3,2.4405]
[1724748494280,3.72193,2686.8,2686.4,0.24405]
[1724748494491,7.44395,2686.8,2686.4,0.24405]
[1724748494696,3.72193,2686.8,2686.4,0.24405]
[1724748495083,6.00728,2687.0,2686.5,3.7223]
[1724748495264,3.72168,2687.0,2686.6,0.396635]
[1724748498324,3.72168,2687.0,2686.4,3.96639]
[1724748499803,3.72176,2686.9,2686.4,3.96639]
[1724748500009,6.00736,2686.9,2686.4,0.24405]
[1724748502087,3.72192,2686.8,2686.4,0.24405]
[1724748503876,3.72206,2686.7,2686.4,0.24405]
[1724748504079,3.72206,2686.7,2686.1,2.2562]
[1724748504380,3.72219,2686.6,2686.1,5.2562]
[1724748504585,3.72192,2686.8,2686.1,5.2562]
[1724748504794,3.72192,2686.8,2686.2,0.897908]
[1724748505201,3.72213,2686.7,2686.2,0.897908]
[1724748505417,3.72213,2686.7,2685.4,0.78128756]
[1724748505418,3.72268,2686.3,2685.6,3.72352]
[1724748505576,3.72295,2686.1,2685.6,3.72352]
[1724748505775,3.72295,2686.1,2685.5,2.2562]
[1724748505997,3.72295,2686.1,2685.5,5.97979]
[1724748506203,3.72295,2686.1,2685.6,0.95593175]
[1724748506515,3.72295,2686.1,2685.6,4.67947175]
[1724748506711,3.72273,2686.2,2685.6,8.40295175]
[1724748506915,3.72273,2686.2,2685.6,4.67941175]
[1724748507085,3.72273,2686.2,2685.6,8.40288175]
[1724748507290,3.72312,2686.0,2685.4,5.97994]
[1724748507516,3.72273,2686.2,2685.5,3.72361]
[1724748507733,3.72287,2686.1,2685.5,3.72361]
[1724748507933,3.72287,2686.1,2685.6,3.72356]
[1724748510277,9.7794,2686.3,2685.6,7.44702]
[1724748510488,7.28,2686.5,2685.5,0.597994]
[1724748510489,7.28,2686.5,2686.1,3.72277]
[1724748510704,7.28,2686.5,2686.2,2.2562]
[1724748510903,3.72191,2686.8,2686.2,2.2562]
[1724748511330,3.72191,2686.8,2686.2,2.854097]
[1724748511528,3.72206,2686.7,2686.2,2.854097]
[1724748512325,3.72206,2686.7,2686.2,0.597897]
[1724748512632,3.72206,2686.7,2686.1,3.72277]
[1724748514114,7.44418,2686.7,2686.1,3.72277]
[1724748514313,3.72206,2686.7,2686.1,3.72277]
[1724748514904,7.44418,2686.7,2686.1,3.72277]
[1724748515098,3.72206,2686.7,2686.1,3.72277]
[1724748515300,3.72206,2686.7,2686.2,0.597897]
[1724748515687,7.4442,2686.7,2686.2,0.597897]
[1724748516730,3.72218,2686.6,2686.2,0.597897]
[1724748517556,3.72206,2686.7,2686.3,2.2562]
[1724748520954,7.44421,2686.7,2686.3,2.2562]
[1724748521116,3.72206,2686.7,2686.3,2.2562]
[1724748521316,3.72206,2686.7,2686.3,2.9138867]
[1724748521831,7.44423,2686.7,2686.3,2.9138867]
[1724748522428,3.72218,2686.6,2686.3,2.9138867]
[1724748524841,3.72218,2686.6,2686.3,2.2562]
[1724748526056,3.72206,2686.7,2686.0,3.72297]
[1724748526057,7.44476,2686.5,2686.0,2.2504]
[1724748526357,3.72232,2686.5,2686.0,2.2504]
[1724748526559,3.72232,2686.5,2685.8,5.97361]
[1724748526759,3.7226,2686.3,2685.8,5.97361]
[1724748527052,3.7226,2686.3,2685.9,0.969695]
[1724748530118,7.44474,2686.5,2685.9,4.692835]
[1724748530526,3.72232,2686.5,2685.9,4.692745]
[1724748530758,3.72232,2686.5,2686.0,0.6943145]
[1724748531132,3.72232,2686.5,2686.1,2.4287]
[1724748531468,7.28,2686.6,2686.1,2.4287]
[1724748531667,7.28,2686.6,2686.2,3.7226]
[1724748533541,3.72206,2686.7,2686.2,3.7226]
[1724748533848,3.72206,2686.7,2686.3,0.61513]
[1724748535371,3.72206,2686.7,2686.2,3.7226]
[1724748536959,7.28,2686.9,2686.4,2.4287]
[1724748537183,7.28,2686.9,2686.5,3.72229]
[1724748537330,7.28,2686.9,2686.4,6.15104]
[1724748537537,7.28,2686.9,2686.5,0.615104]
[1724748538276,3.72149,2687.1,2686.6,3.72214]
[1724748538595,3.72149,2687.1,2686.6,6.15084]
[1724748538766,3.72149,2687.1,2686.7,0.6765944]
[1724748540591,3.72177,2686.9,2686.5,0.615104]
[1724748542194,3.72192,2686.8,2686.2,6.15134]
[1724748542403,3.72239,2686.5,2685.9,2.4287]
[1724748542554,3.72239,2686.5,2685.9,6.15183]
[1724748542755,3.72239,2686.5,2685.9,2.4287]
[1724748542995,3.72239,2686.5,2685.8,3.72324]
[1724748543211,3.72239,2686.5,2685.9,3.72314]
[1724748543496,3.72245,2686.4,2685.8,4.467915]
[1724748544069,3.72245,2686.4,2685.8,8.191095]
[1724748544963,3.72239,2686.5,2685.9,3.72312]
[1724748545161,3.72239,2686.5,2685.9,4.7850875]
[1724748545504,3.72239,2686.5,2685.9,1.0619675]
[1724748545662,3.72253,2686.4,2685.9,1.0619675]
[1724748546786,3.72239,2686.5,2685.9,1.0619675]
[1724748547224,3.72239,2686.5,2686.0,3.72296]
[1724748547379,3.72239,2686.5,2686.0,4.57377075]
[1724748552213,3.72239,2686.5,2686.0,0.85081075]
[1724748552422,3.72239,2686.5,2685.8,3.72318]
[1724748552423,3.72247,2686.4,2685.9,3.72313]
[1724748552778,3.72239,2686.5,2685.9,3.72313]
[1724748552977,3.72239,2686.5,2686.0,3.723]
[1724748553304,11.00193,2686.8,2686.1,2.4168]
[1724748553618,14.72394,2686.8,2686.2,3.96431]
[1724748553817,14.72392,2686.8,2686.2,3.72263]
[1724748554781,11.00193,2686.8,2686.2,3.72263]
[1724748555480,11.00193,2686.8,2686.2,7.44527]
[1724748556006,11.00193,2686.8,2686.2,3.72263]
[1724748556212,14.72392,2686.8,2686.2,4.708865]
[1724748556412,11.00193,2686.8,2686.2,4.708865]
[1724748557977,3.72205,2686.7,2686.2,4.708865]
[1724748558407,11.00193,2686.8,2686.2,4.708865]
[1724748558604,7.28,2686.8,2686.4,3.72243]
[1724748558804,7.28,2686.8,2686.5,2.4168]
[1724748559027,7.44361,2686.9,2686.5,2.4168]
[1724748559580,3.72177,2686.9,2686.5,2.4168]
[1724748559994,7.44363,2686.9,2686.5,2.4168]
[1724748560624,3.7219,2686.8,2686.5,2.4168]
[1724748561533,7.44334,2687.0,2686.5,2.4168]
[1724748562062,3.72163,2687.0,2686.5,2.4168]
[1724748562389,11.00141,2687.2,2686.5,6.1391]
[1724748562694,3.72164,2687.0,2686.5,6.1391]
[1724748562897,11.00141,2687.2,2686.6,0.61391]
[1724748563108,7.28,2687.2,2686.8,2.3015]
[1724748563429,4.9688806,2687.5,2686.8,2.37593273]
[1724748563430,7.28,2687.5,2686.8,2.37593273]
[1724748563658,12.35,2687.8,2687.1,2.3015]
[1724748563659,11.00058,2687.8,2687.1,2.3015]
[1724748563799,11.00058,2687.8,2687.1,5.29098961]
[1724748563992,3.72079,2687.6,2687.1,6.02295]
[1724748564192,3.72079,2687.6,2687.1,3.57491496]
[1724748565737,7.28,2687.8,2687.2,0.07442387]
[1724748566047,16.07028,2688.0,2687.3,3.72118]
[1724748566336,16.07028,2688.0,2687.4,0.602268]
[1724748566508,3.72028,2688.0,2687.3,3.72118]
[1724748566930,15.38105882,2688.1,2687.4,5.29098961]
[1724748567098,15.38105882,2688.1,2687.3,3.72118]
[1724748567099,8.10105882,2688.1,2687.8,9.01148961]
[1724748567299,8.10105882,2688.1,2687.8,10.28470157]
[1724748568244,8.10105882,2688.1,2688.0,3.72023]
[1724748568592,8.10105882,2688.1,2687.8,10.28461157]
[1724748568795,8.10105882,2688.1,2687.8,7.29512196]
[1724748569090,8.10105882,2688.1,2687.9,0.7295122]
[1724748569737,8.10105882,2688.1,2688.0,9.72116]
[1724748570445,8.10105882,2688.1,2688.0,6.00093]
[1724748570647,8.10105882,2688.1,2688.0,2.2807]
[1724748572208,8.10105882,2688.1,2688.0,5.27018961]
[1724748572398,8.10105882,2688.1,2688.0,8.99041961]
[1724748572598,8.10105882,2688.1,2688.0,10.26150857]
[1724748574853,8.10105882,2688.1,2688.0,13.98173857]
[1724748577444,8.10105882,2688.1,2688.0,10.99224896]
[1724748578336,8.10105882,2688.1,2688.0,13.99224896]
[1724748580961,8.10105882,2688.1,2688.0,10.27201896]
[1724748581535,8.10105882,2688.1,2688.0,1.27108896]
[1724748581766,8.10105882,2688.1,2687.8,6.00112]
[1724748582110,8.10105882,2688.1,2687.8,6.00111]
[1724748582529,8.10105882,2688.1,2687.8,9.72153]
[1724748582727,8.10105882,2688.1,2687.8,2.2807]
[1724748582955,8.10105882,2688.1,2687.6,3.7207]
[1724748583115,8.10105882,2688.1,2687.7,3.72061]
[1724748583515,8.10105882,2688.1,2687.6,3.73366061]
[1724748583733,8.10105882,2688.1,2687.7,2.2807]
[1724748583929,8.10105882,2688.1,2687.8,3.72041]
[1724748584969,8.10105882,2688.1,2687.9,3.72024]
[1724748585280,8.10105882,2688.1,2687.7,6.00122]
[1724748585445,8.10105882,2688.1,2687.7,6.90029096]
[1724748585997,8.10105882,2688.1,2687.9,2.98948961]
[1724748586137,8.10105882,2688.1,2688.0,3.72023]
[1724748587580,8.10105882,2688.1,2687.9,6.70984961]
[1724748587581,8.10105882,2688.1,2687.9,10.43012961]
[1724748587933,8.10105882,2688.1,2688.0,3.72023]
[1724748588129,8.10105882,2688.1,2688.0,4.76322996]
[1724748589651,8.10105882,2688.1,2688.0,1.04299996]
[1724748589844,8.10105882,2688.1,2687.9,3.72028]
[1724748591080,8.10105882,2688.1,2687.7,9.88986057]
[1724748591081,8.10105882,2688.1,2687.7,6.90037096]
[1724748592983,8.10105882,2688.1,2687.7,10.62093096]
[1724748593893,8.10105882,2688.1,2687.8,3.72051]
[1724748595604,8.10105882,2688.1,2687.9,3.72036]
[1724748595774,8.10105882,2688.1,2687.9,4.7824291]
[1724748596530,8.10105882,2688.1,2687.7,6.90033096]
[1724748596531,11.82116882,2688.1,2687.4,2.2843]
[1724748596809,11.82116882,2688.1,2687.2,7.44245]
[1724748596810,7.44094,2687.9,2687.2,7.44245]
[1724748596968,2.4321,2687.8,2687.0,3.72155]
[1724748597168,2.4321,2687.8,2687.1,4.093615]
[1724748597504,2.4321,2687.8,2687.4,3.72096]
[1724748597670,2.4321,2687.8,2687.2,2.2843]
[1724748597671,14.25333882,2688.1,2687.5,3.72079]
[1724748597992,14.25333882,2688.1,2687.5,7.44164]
[1724748598197,14.25333882,2688.1,2687.5,4.464954]
[1724748598916,17.97353882,2688.1,2687.5,4.464954]
[1724748599324,3.72024,2688.0,2687.5,4.464954]
[1724748599826,14.25333882,2688.1,2687.5,4.464954]
[1724748599976,17.97353882,2688.1,2687.5,3.72079]
[1724748600172,14.25333882,2688.1,2687.5,3.72079]
[1724748600378,17.97353882,2688.1,2687.5,3.72079]
[1724748600580,3.72026,2688.0,2687.5,3.72079]
[1724748600813,3.72026,2688.0,2687.3,3.72109]
[1724748600980,3.72026,2688.0,2687.4,0.600544]
[1724748601717,3.72026,2688.0,2687.4,4.321594]
[1724748602520,14.25333882,2688.1,2687.5,3.72081]
[1724748602723,14.25333882,2688.1,2687.6,0.4321354]
[1724748602924,14.25333882,2688.1,2687.6,4.1528954]
[1724748603980,17.97354882,2688.1,2687.6,0.4321354]
[1724748604186,14.25333882,2688.1,2687.6,0.4321354]
[1724748605487,14.25333882,2688.1,2687.7,0.41530454]
[1724748605887,17.97352882,2688.1,2687.7,0.41530454]
[1724748606895,17.97352882,2688.1,2687.4,0.600544]
[1724748606896,3.72041,2687.9,2687.4,0.600544]
[1724748608097,14.25333882,2688.1,2687.5,3.72092]
[1724748608722,17.97352882,2688.1,2687.5,3.72092]
[1724748609532,17.97352882,2688.1,2687.4,0.600544]
[1724748609533,14.25333882,2688.1,2687.4,0.600544]
[1724748609824,17.97353882,2688.1,2687.5,0.4321634]
[1724748610032,14.25333882,2688.1,2687.5,4.1530134]
[1724748610324,14.25333882,2688.1,2687.6,2.4799]
[1724748611335,17.97353882,2688.1,2687.5,3.7208]
[1724748611550,17.97353882,2688.1,2687.4,6.20091]
[1724748611551,14.25333882,2688.1,2687.4,6.20091]
[1724748611842,14.25333882,2688.1,2687.4,3.72101]
[1724748612197,3.72052,2687.8,2687.3,3.72114]
[1724748612390,3.72052,2687.8,2687.4,0.992205]
[1724748612594,3.72065,2687.7,2687.2,6.20119]
[1724748613716,7.44095,2687.9,2687.2,6.20119]
[1724748614235,2.4683,2687.8,2687.2,6.20119]
[1724748614414,2.4683,2687.8,2687.3,5.01239896]
[1724748614622,3.72046,2687.9,2687.3,5.01239896]
[1724748614795,3.72046,2687.9,2687.3,8.73358896]
[1724748615636,3.72046,2687.9,2687.4,3.72106]
[1724748615855,3.72046,2687.9,2687.3,5.01239896]
[1724748616193,3.72046,2687.9,2687.3,5.01232896]
[1724748616443,3.72046,2687.9,2687.3,8.73344896]
[1724748616727,3.72046,2687.9,2687.4,4.8423949]
[1724748620346,2.4683,2688.0,2687.5,3.72091]
[1724748620643,6.18861,2688.0,2687.5,3.72091]
[1724748620790,2.4683,2688.0,2687.4,1.1213349]
[1724748621133,2.4683,2688.0,2687.5,3.72092]
[1724748622237,6.18856,2688.0,2687.5,3.72092]
[1724748622598,3.72026,2688.0,2687.6,2.3285]
[1724748622805,8.10105882,2688.1,2687.7,3.72063]
[1724748623811,3.72041,2687.9,2687.4,3.4498349]
[1724748624105,3.72041,2687.9,2687.3,3.72112]
[1724748624106,2.3602,2687.8,2687.3,3.72112]
[1724748625060,2.3602,2687.8,2687.1,3.72141]
[1724748625202,3.72093,2687.5,2687.0,3.72154]
[1724748625516,2.3602,2687.4,2687.0,3.72154]
[1724748625720,2.3602,2687.4,2687.0,4.4511792]
[1724748625908,2.3602,2687.4,2687.0,8.1727092]
[1724748626116,2.3602,2687.4,2687.0,4.4511692]
[1724748626552,2.3602,2687.4,2687.0,5.69752124]
[1724748627040,3.72075,2687.7,2687.2,1.24635204]
[1724748627245,2.3602,2687.9,2687.4,3.72098]
[1724748627441,14.18138882,2688.1,2687.4,4.96733204]
[1724748627965,3.72026,2688.0,2687.4,4.96732204]
[1724748628136,10.46125882,2688.1,2687.6,1.24635204]
[1724748628332,8.10105882,2688.1,2688.0,1.24635204]
[1724748629421,8.10105882,2688.1,2687.8,4.96677204]
[1724748630135,8.10105882,2688.1,2687.8,3.72042]
[1724748630334,8.10105882,2688.1,2687.9,0.372042]
[1724748633269,8.10105882,2688.1,2688.0,6.04873]
[1724748635164,8.10105882,2688.1,2688.0,2.3285]
[1724748636515,8.10105882,2688.1,2687.9,4.092322]
[1724748639693,8.10105882,2688.1,2688.0,2.3285]
[1724748639895,8.10105882,2688.1,2688.0,3.3426102]
[1724748643244,8.10105882,2688.1,2688.0,7.0628402]
[1724748644232,8.10105882,2688.1,2688.0,3.3426102]
[1724748644531,8.10105882,2688.1,2688.0,2.3285]
[1724748645252,8.10105882,2688.1,2688.0,6.04873]
[1724748645821,8.10105882,2688.1,2688.0,2.3285]
[1724748647164,8.10105882,2688.1,2687.9,7.44058]
[1724748647321,8.10105882,2688.1,2688.0,3.72023]
[1724748651998,8.10105882,2688.1,2688.0,4.96603856]
[1724748652285,8.10105882,2688.1,2687.7,8.68688856]
[1724748652453,8.10105882,2688.1,2687.8,3.7205]
[1724748652656,8.10105882,2688.1,2687.7,8.68689856]
[1724748652854,8.10105882,2688.1,2687.8,3.72049]
[1724748653474,8.10105882,2688.1,2687.9,4.96617856]
[1724748653700,8.10105882,2688.1,2688.0,3.72023]
[1724748653997,8.10105882,2688.1,2687.9,4.96617856]
[1724748653998,8.10105882,2688.1,2687.9,8.68646856]
[1724748654883,8.10105882,2688.1,2688.0,3.72023]
[1724748655796,8.10105882,2688.1,2688.0,9.87056]
[1724748660901,8.10105882,2688.1,2687.8,3.72044]
[1724748661150,8.10105882,2688.1,2687.8,4.96624856]
[1724748661397,10.47975882,2688.1,2687.8,4.96624856]
[1724748662577,10.47975882,2688.1,2687.8,8.68664856]
[1724748662997,10.47975882,2688.1,2687.9,3.72035]
[1724748664423,10.47975882,2688.1,2687.8,4.96620856]
[1724748665022,10.47975882,2688.1,2687.9,3.72037]
[1724748666105,10.47975882,2688.1,2687.8,8.68662856]
[1724748666308,10.47975882,2688.1,2687.8,8.68661856]
[1724748666685,10.47975882,2688.1,2687.9,3.72036]
[1724748667107,10.47975882,2688.1,2687.8,4.96620856]
[1724748667488,10.47975882,2688.1,2687.6,3.7207]
[1724748667683,10.47975882,2688.1,2687.0,0.78074959]
[1724748667684,3.72067,2687.7,2687.2,3.72129]
[1724748667904,4.96647856,2687.7,2687.2,3.72129]
[1724748668135,4.96647856,2687.7,2687.0,3.72154]
[1724748668136,2.334,2687.6,2687.0,3.72154]
[1724748668419,4.96647856,2687.7,2686.8,7.44363]
[1724748668420,2.334,2687.3,2686.8,7.44363]
[1724748668727,2.334,2687.3,2686.9,1.24580856]
[1724748669223,2.334,2687.3,2686.9,4.96746856]
[1724748671044,2.334,2687.3,2686.9,1.24580856]
[1724748671250,2.334,2687.3,2686.6,7.44421]
[1724748671417,6.05521,2687.3,2686.7,4.96783856]
[1724748671861,2.334,2687.3,2686.8,3.72189]
[1724748672064,2.334,2687.3,2686.9,1.24580856]
[1724748673561,2.334,2687.3,2687.0,3.7216]
[1724748677685,3.7209,2687.6,2687.0,3.7216]
[1724748677832,7.44181,2687.6,2687.0,3.7216]
[1724748678378,3.72095,2687.5,2686.9,1.24580856]
[1724748678547,3.72095,2687.5,2686.9,4.96752856]
[1724748680469,7.44178,2687.6,2687.0,3.72161]
[1724748680837,3.72099,2687.5,2687.0,3.72161]
[1724748681756,3.72111,2687.4,2686.9,1.24580856]
[1724748681960,3.72125,2687.3,2686.7,1.24580856]
[1724748682146,3.72142,2687.2,2686.6,3.72205]
[1724748682641,3.72142,2687.2,2686.7,3.72203]
[1724748684135,3.72149,2687.1,2686.5,4.96803856]
[1724748684649,3.72149,2687.1,2686.6,3.72216]
[1724748685220,3.72149,2687.1,2686.5,4.96803856]
[1724748685677,3.72163,2687.0,2686.5,3.72223]
[1724748686469,3.7215,2687.1,2686.5,8.69026856]
[1724748686637,3.7215,2687.1,2686.5,4.96803856]
[1724748687367,3.7215,2687.1,2686.5,8.69025856]
[1724748688069,3.7215,2687.1,2686.5,4.96802856]
[1724748688661,3.7215,2687.1,2686.5,8.69024856]
[1724748688868,3.7215,2687.1,2686.5,4.96802856]
[1724748689091,3.7215,2687.1,2686.5,8.69025856]
[1724748689294,3.7215,2687.1,2686.5,4.96802856]
[1724748689592,7.44286,2687.2,2686.5,4.96802856]
[1724748689794,3.72142,2687.2,2686.6,3.7221]
[1724748690277,3.72142,2687.2,2686.6,6.0579]
[1724748690886,3.72142,2687.2,2686.7,4.96783856]
[1724748691211,3.72142,2687.2,2686.8,2.3358]
[1724748692210,7.28,2687.3,2686.8,2.3358]
[1724748692211,7.28,2687.3,2686.9,1.24580856]
[1724748692378,7.28,2687.3,2687.1,1.24580856]
[1724748692589,7.28,2687.3,2687.2,6.05714]
[1724748692916,3.72058,2687.8,2687.2,6.05714]
[1724748692917,14.72121,2687.8,2687.2,6.05714]
[1724748693211,11.00058,2687.8,2687.2,6.05714]
[1724748693416,11.00058,2687.8,2687.4,2.3358]
[1724748694126,3.72076,2687.7,2687.4,2.3358]
[1724748694309,3.72079,2687.6,2687.4,2.3358]
[1724748694469,3.72079,2687.6,2687.0,2.3358]
[1724748694668,3.72079,2687.6,2687.0,6.0574]
[1724748695405,7.44167,2687.6,2687.0,6.0574]
[1724748695783,3.72079,2687.6,2687.0,6.0574]
[1724748695995,4.96659856,2687.6,2687.0,6.0574]
[1724748696199,3.72079,2687.6,2687.0,6.0574]
[1724748697021,11.00058,2687.8,2687.4,2.3358]
[1724748697306,14.72119,2687.8,2687.4,2.3358]
[1724748697510,3.72068,2687.7,2687.4,2.3358]
[1724748698007,11.00058,2687.8,2687.4,2.3358]
[1724748698215,3.72067,2687.7,2687.4,2.3358]
[1724748700290,3.69104575,2687.7,2687.4,2.3358]
[1724748700467,3.72058,2687.8,2687.4,2.3358]
[1724748700468,3.72081,2687.6,2687.4,2.3358]
[1724748701677,3.72081,2687.6,2687.2,2.3358]
[1724748703907,3.72081,2687.6,2687.0,5.98219]
[1724748703908,6.20521,2687.6,2687.0,5.98219]
[1724748704879,3.72093,2687.5,2687.0,5.98219]
[1724748705080,9.92608,2687.6,2687.0,5.98219]
[1724748705314,3.72081,2687.6,2687.0,5.98219]
[1724748705474,3.72081,2687.6,2687.2,2.2607]
[1724748710015,3.72058,2687.8,2687.2,2.2607]
[1724748710187,3.72073,2687.7,2687.2,2.2607]
[1724748711697,3.72084,2687.6,2687.2,2.2607]
[1724748712225,7.44172,2687.6,2687.2,2.2607]
[1724748714630,7.44171,2687.6,2687.2,2.2607]
[1724748714790,3.72084,2687.6,2687.2,2.2607]
[1724748714994,7.44171,2687.6,2687.2,2.2607]
[1724748718503,3.72084,2687.6,2687.2,2.2607]
[1724748718708,7.44171,2687.6,2687.2,2.2607]
[1724748719230,3.72084,2687.6,2687.2,2.2607]
[1724748721637,3.72031,2688.0,2687.4,6.18585]
[1724748721836,7.44065,2688.0,2687.4,6.18585]
[1724748722628,3.72039,2687.9,2687.4,6.18585]
[1724748723131,3.72051,2687.8,2687.4,2.4648]
[1724748723311,3.72081,2687.6,2687.4,2.4648]
[1724748723510,3.72081,2687.6,2687.2,2.3811]
[1724748723511,7.44169,2687.6,2687.2,2.3811]
[1724748723718,3.72081,2687.6,2687.2,2.3811]
[1724748724040,3.72095,2687.5,2687.2,2.3811]
[1724748724240,3.72081,2687.6,2687.0,2.3811]
[1724748724241,3.72107,2687.4,2687.0,2.3811]
[1724748725029,3.72088,2687.6,2687.0,2.3811]
[1724748725229,3.72106,2687.5,2687.0,2.3811]
[1724748726117,3.72106,2687.5,2687.0,6.1027]
[1724748726439,7.44178,2687.6,2687.0,6.1027]
[1724748726659,7.44176,2687.6,2687.0,6.1027]
[1724748726862,7.44178,2687.6,2687.2,2.3811]
[1724748727063,3.72088,2687.6,2687.2,2.3811]
[1724748727251,7.44176,2687.6,2687.2,2.3811]
[1724748729232,3.72088,2687.6,2687.2,2.3811]
[1724748731729,7.44176,2687.6,2687.2,2.3811]
[1724748731925,3.72088,2687.6,2687.2,2.3811]
[1724748736137,3.72087,2687.6,2687.2,2.3811]
[1724748737027,3.72094,2687.5,2687.2,2.3811]
[1724748737630,7.44179,2687.6,2687.2,2.3811]
[1724748737931,3.72087,2687.6,2687.2,2.3811]
[1724748738354,7.44179,2687.6,2687.2,2.3811]
[1724748738870,3.72094,2687.5,2687.2,2.3811]
[1724748740858,3.72108,2687.4,2687.0,3.58440856]
[1724748741060,3.72138,2687.2,2686.8,2.3386]
[1724748742481,3.72123,2687.3,2686.8,6.06048]
[1724748742680,3.72108,2687.4,2686.9,2.2852]
[1724748742858,3.72108,2687.4,2686.9,3.53100856]
[1724748743677,3.72108,2687.4,2686.9,7.25273856]
[1724748744794,7.28,2687.7,2687.3,4.96690856]
[1724748744946,7.28,2687.7,2687.4,2.2852]
[1724748746049,11.00069,2687.7,2687.2,6.00643]
[1724748746293,3.72089,2687.6,2687.2,2.2852]
[1724748746587,3.72093,2687.5,2687.2,2.2852]
[1724748748180,11.00069,2687.7,2687.2,2.2852]
[1724748748381,14.72144,2687.7,2687.2,2.2852]
[1724748749996,14.72143,2687.7,2687.2,2.2852]
[1724748750548,3.72055,2687.8,2687.2,3.72125]
[1724748750848,3.72055,2687.8,2687.3,2.2852]
[1724748752065,7.44114,2687.8,2687.3,2.2852]
[1724748752704,3.72055,2687.8,2687.3,2.2852]
[1724748753058,7.44118,2687.8,2687.3,2.2852]
[1724748753264,3.72055,2687.8,2687.3,2.2852]
[1724748754380,3.72072,2687.7,2687.3,2.2852]
[1724748754589,3.72072,2687.7,2687.0,2.2852]
[1724748754590,3.72088,2687.6,2687.0,2.2852]
[1724748755095,3.72088,2687.6,2687.0,6.00681]
[1724748755892,3.72088,2687.6,2687.1,3.72147]
[1724748756086,3.72088,2687.6,2687.2,2.2852]
[1724748759371,3.72093,2687.5,2687.0,6.00679]
[1724748759735,3.72093,2687.5,2687.0,2.2852]
[1724748761315,4.96673856,2687.5,2687.0,2.2852]
[1724748761474,4.96673856,2687.5,2686.9,3.72165]
[1724748762092,3.72112,2687.4,2686.8,2.2852]
[1724748762297,2.3752,2687.2,2686.6,6.00729]
[1724748762498,6.09666,2687.2,2686.6,6.00729]
[1724748763089,6.09666,2687.2,2686.6,9.72933]
[1724748763418,6.09666,2687.2,2686.6,9.7293]
[1724748763717,6.09666,2687.2,2686.6,6.00725]
[1724748763923,6.09666,2687.2,2686.6,9.72931]
[1724748764242,3.72146,2687.2,2686.6,9.72931]
[1724748764844,3.72146,2687.2,2686.7,3.72202]
[1724748765401,3.72146,2687.2,2686.6,9.72933]
[1724748765812,3.72146,2687.2,2686.7,3.72203]
[1724748766326,3.72146,2687.2,2686.6,6.00725]
[1724748767331,3.72146,2687.2,2686.6,9.72933]
[1724748767649,3.72146,2687.2,2686.6,6.00725]